[Event "Titled Tuesday Blitz September 13 Early 2022"]
[White "Cardoso Cardoso, Jose Gabriel"]
[Black "Koellner, Ruben Gideon"]
[WhiteFideId "4430492"]
[BlackFideId "12993093"]
[WhiteElo "2485"]
[BlackElo "2286"]
[Result "1-0"]
[Round "05"]
[TimeControl "180+1"]
[Date "2022.09.13"]
[WhiteClock "0:00:08"]
[BlackClock "0:00:03"]

1. Nf3 {[%clk 0:02:59]}  d6 {[%clk 0:03:00]} 2. d4 {[%clk 0:02:57]}  Nf6 {[%clk 0:02:56]} 3. Bg5 {[%clk 0:02:56]}  Nbd7 {[%clk 0:02:31]} 4. Nbd2 {[%clk 0:02:55]}  h6 {[%clk 0:02:26]} 5. Bxf6 {[%clk 0:02:50]}  Nxf6 {[%clk 0:02:27]} 6. e4 {[%clk 0:02:49]}  e5 {[%clk 0:02:21]} 7. c3 {[%clk 0:02:40]}  exd4 {[%clk 0:02:09]} 8. Nxd4 {[%clk 0:02:41]}  g6 {[%clk 0:02:07]} 9. Bb5+ {[%clk 0:02:37]}  c6 {[%clk 0:02:06]} 10. Bd3 {[%clk 0:02:35]}  Bg7 {[%clk 0:02:05]} 11. O-O {[%clk 0:02:34]}  O-O {[%clk 0:02:05]} 12. h3 {[%clk 0:02:30]}  Re8 {[%clk 0:02:05]} 13. Re1 {[%clk 0:02:30]}  Qc7 {[%clk 0:02:00]} 14. N2f3 {[%clk 0:02:29]}  Bd7 {[%clk 0:01:56]} 15. Qc2 {[%clk 0:02:28]}  Rad8 {[%clk 0:01:54]} 16. Rad1 {[%clk 0:02:26]}  Bc8 {[%clk 0:01:54]} 17. Bc4 {[%clk 0:02:23]}  d5 {[%clk 0:01:47]} 18. exd5 {[%clk 0:02:21]}  Rxe1+ {[%clk 0:01:48]} 19. Rxe1 {[%clk 0:02:21]}  Nxd5 {[%clk 0:01:48]} 20. Qe4 {[%clk 0:02:13]}  Qd6 {[%clk 0:01:40]} 21. Bxd5 {[%clk 0:02:11]}  Qxd5 {[%clk 0:01:41]} 22. Qxd5 {[%clk 0:02:09]}  cxd5 {[%clk 0:01:40]} 23. Re7 {[%clk 0:02:08]}  Kf8 {[%clk 0:01:38]} 24. Rc7 {[%clk 0:02:06]}  Bf6 {[%clk 0:01:35]} 25. Nb5 {[%clk 0:01:58]}  a6 {[%clk 0:01:25]} 26. Na7 {[%clk 0:01:54]}  Be6 {[%clk 0:01:20]} 27. Rxb7 {[%clk 0:01:49]}  Rd6 {[%clk 0:01:13]} 28. Nd4 {[%clk 0:01:45]}  Bd7 {[%clk 0:01:06]} 29. Rb8+ {[%clk 0:01:36]}  Kg7 {[%clk 0:01:05]} 30. Nc8 {[%clk 0:01:36]}  Bxc8 {[%clk 0:00:59]} 31. Rxc8 {[%clk 0:01:36]}  Bxd4 {[%clk 0:00:58]} 32. cxd4 {[%clk 0:01:37]}  Rb6 {[%clk 0:00:59]} 33. Rc2 {[%clk 0:01:35]}  Rb4 {[%clk 0:00:58]} 34. Rd2 {[%clk 0:01:36]}  Kf6 {[%clk 0:00:55]} 35. Kf1 {[%clk 0:01:35]}  Kf5 {[%clk 0:00:54]} 36. Ke2 {[%clk 0:01:28]}  Ke4 {[%clk 0:00:54]} 37. f3+ {[%clk 0:01:28]}  Kf4 {[%clk 0:00:54]} 38. Kf2 {[%clk 0:01:28]}  Rb6 {[%clk 0:00:41]} 39. g3+ {[%clk 0:01:27]}  Kf5 {[%clk 0:00:42]} 40. Ke3 {[%clk 0:01:28]}  Re6+ {[%clk 0:00:42]} 41. Kf2 {[%clk 0:01:20]}  Rc6 {[%clk 0:00:42]} 42. Re2 {[%clk 0:01:15]}  Kf6 {[%clk 0:00:38]} 43. Ke3 {[%clk 0:01:11]}  Rc1 {[%clk 0:00:35]} 44. Kd3 {[%clk 0:01:07]}  Rd1+ {[%clk 0:00:34]} 45. Kc3 {[%clk 0:01:06]}  Rc1+ {[%clk 0:00:34]} 46. Kd2 {[%clk 0:01:04]}  Rg1 {[%clk 0:00:27]} 47. g4 {[%clk 0:01:01]}  Rg3 {[%clk 0:00:26]} 48. h4 {[%clk 0:00:54]}  Rxf3 {[%clk 0:00:25]} 49. Re5 {[%clk 0:00:55]}  Rf4 {[%clk 0:00:22]} 50. g5+ {[%clk 0:00:55]}  Kg7 {[%clk 0:00:19]} 51. Rxd5 {[%clk 0:00:54]}  Rxh4 {[%clk 0:00:18]} 52. a4 {[%clk 0:00:49]}  hxg5 {[%clk 0:00:18]} 53. b4 {[%clk 0:00:44]}  g4 {[%clk 0:00:18]} 54. b5 {[%clk 0:00:44]}  axb5 {[%clk 0:00:16]} 55. axb5 {[%clk 0:00:43]}  f5 {[%clk 0:00:16]} 56. b6 {[%clk 0:00:35]}  Rh8 {[%clk 0:00:11]} 57. Ke3 {[%clk 0:00:30]}  Kf6 {[%clk 0:00:09]} 58. b7 {[%clk 0:00:29]}  Rb8 {[%clk 0:00:08]} 59. Rb5 {[%clk 0:00:28]}  g5 {[%clk 0:00:07]} 60. Rb6+ {[%clk 0:00:24]}  Ke7 {[%clk 0:00:06]} 61. Rg6 {[%clk 0:00:24]}  Kf7 {[%clk 0:00:03]} 62. Rh6 {[%clk 0:00:21]}  Kg7 {[%clk 0:00:03]} 63. Rb6 {[%clk 0:00:21]}  Kf7 {[%clk 0:00:03]} 64. d5 {[%clk 0:00:22]}  Ke7 {[%clk 0:00:03]} 65. Rg6 {[%clk 0:00:21]}  Kf7 {[%clk 0:00:03]} 66. Rh6 {[%clk 0:00:20]}  Kg7 {[%clk 0:00:03]} 67. Rb6 {[%clk 0:00:20]}  Kf7 {[%clk 0:00:04]} 68. Kd4 {[%clk 0:00:19]}  g3 {[%clk 0:00:03]} 69. Ke3 {[%clk 0:00:12]}  f4+ {[%clk 0:00:02]} 70. Kf3 {[%clk 0:00:12]}  Ke7 {[%clk 0:00:03]} 71. Rg6 {[%clk 0:00:11]}  Kf7 {[%clk 0:00:03]} 72. Rh6 {[%clk 0:00:09]}  Kg7 {[%clk 0:00:03]} 73. Rb6 {[%clk 0:00:08]}  Kf7 {[%clk 0:00:03]} 74. Rh6 {[%clk 0:00:05]}  Kg7 {[%clk 0:00:03]} 75. Rb6 {[%clk 0:00:06]}  Kh7 {[%clk 0:00:03]} 76. d6 {[%clk 0:00:06]}  Kg7 {[%clk 0:00:03]} 77. d7 {[%clk 0:00:06]}  Kf7 {[%clk 0:00:02]} 78. d8=Q {[%clk 0:00:07]}  Rxd8 {[%clk 0:00:03]} 79. b8=Q {[%clk 0:00:08]}  Rxb8 {[%clk 0:00:03]} 80. Rxb8 {[%clk 0:00:09]}  Kf6 {[%clk 0:00:04]} 81. Rb5 {[%clk 0:00:09]}  Kg6 {[%clk 0:00:04]} 82. Kg4 {[%clk 0:00:08]}  Kf6 {[%clk 0:00:03]} 83. Rf5+ {[%clk 0:00:08]}  Ke6 {[%clk 0:00:03]} 84. Rxg5 {[%clk 0:00:08]}  f3 {[%clk 0:00:02]} 85. Kxf3 {[%clk 0:00:08]}  g2 {[%clk 0:00:03]} 86. Rxg2 {[%clk 0:00:08]} 1-0


[Site "https://www.chess.com"]

[Event "Titled Tuesday Blitz September 13 Early 2022"]
[White "Donchenko, Alexander"]
[Black "Halkias, Stelios"]
[WhiteFideId "24603295"]
[BlackFideId "4201809"]
[WhiteElo "2572"]
[BlackElo "2453"]
[Result "1-0"]
[Round "05"]
[TimeControl "180+1"]
[Date "2022.09.13"]
[WhiteClock "0:00:06"]
[BlackClock "0:00:04"]

1. Nf3 {[%clk 0:03:00]}  Nf6 {[%clk 0:02:59]} 2. g3 {[%clk 0:03:00]}  g6 {[%clk 0:02:59]} 3. Bg2 {[%clk 0:03:01]}  Bg7 {[%clk 0:02:59]} 4. O-O {[%clk 0:03:02]}  O-O {[%clk 0:02:59]} 5. d4 {[%clk 0:03:03]}  d6 {[%clk 0:02:59]} 6. b3 {[%clk 0:03:03]}  a5 {[%clk 0:02:55]} 7. a4 {[%clk 0:03:03]}  Nc6 {[%clk 0:02:55]} 8. Bb2 {[%clk 0:03:03]}  Nd7 {[%clk 0:02:54]} 9. Nbd2 {[%clk 0:03:02]}  Re8 {[%clk 0:02:50]} 10. e4 {[%clk 0:02:59]}  e5 {[%clk 0:02:48]} 11. d5 {[%clk 0:02:59]}  Nb4 {[%clk 0:02:43]} 12. Ne1 {[%clk 0:02:55]}  Nf6 {[%clk 0:02:33]} 13. c3 {[%clk 0:02:49]}  Na6 {[%clk 0:02:31]} 14. Nd3 {[%clk 0:02:50]}  b6 {[%clk 0:02:21]} 15. b4 {[%clk 0:02:50]}  Bd7 {[%clk 0:02:11]} 16. Qc2 {[%clk 0:02:45]}  h5 {[%clk 0:02:09]} 17. Nb3 {[%clk 0:02:41]}  axb4 {[%clk 0:01:48]} 18. cxb4 {[%clk 0:02:40]}  h4 {[%clk 0:01:48]} 19. Rfc1 {[%clk 0:02:31]}  Nh5 {[%clk 0:01:45]} 20. Bc3 {[%clk 0:02:20]}  f5 {[%clk 0:01:36]} 21. Be1 {[%clk 0:02:12]}  hxg3 {[%clk 0:01:34]} 22. hxg3 {[%clk 0:02:11]}  f4 {[%clk 0:01:31]} 23. b5 {[%clk 0:02:07]}  Nc5 {[%clk 0:01:30]} 24. Nbxc5 {[%clk 0:02:08]}  bxc5 {[%clk 0:01:21]} 25. Rcb1 {[%clk 0:01:55]}  Qg5 {[%clk 0:01:16]} 26. Qd2 {[%clk 0:01:46]}  Reb8 {[%clk 0:01:11]} 27. Ra3 {[%clk 0:01:22]}  Bh6 {[%clk 0:01:07]} 28. Bf3 {[%clk 0:01:04]}  Rxb5 {[%clk 0:01:00]} 29. axb5 {[%clk 0:00:54]}  Rxa3 {[%clk 0:00:59]} 30. b6 {[%clk 0:00:55]}  cxb6 {[%clk 0:00:50]} 31. Rxb6 {[%clk 0:00:56]}  fxg3 {[%clk 0:00:49]} 32. Qxg5 {[%clk 0:00:56]}  Bxg5 {[%clk 0:00:49]} 33. Rxd6 {[%clk 0:00:56]}  Rxd3 {[%clk 0:00:47]} 34. Rxg6+ {[%clk 0:00:46]}  Ng7 {[%clk 0:00:37]} 35. Be2 {[%clk 0:00:46]}  Rd2 {[%clk 0:00:29]} 36. Bxd2 {[%clk 0:00:40]}  Bxd2 {[%clk 0:00:28]} 37. fxg3 {[%clk 0:00:35]}  Kf8 {[%clk 0:00:24]} 38. g4 {[%clk 0:00:29]}  Ne8 {[%clk 0:00:19]} 39. Kg2 {[%clk 0:00:26]}  Ke7 {[%clk 0:00:18]} 40. g5 {[%clk 0:00:22]}  Ba4 {[%clk 0:00:11]} 41. Re6+ {[%clk 0:00:21]}  Kf8 {[%clk 0:00:11]} 42. Rxe5 {[%clk 0:00:20]}  Bc2 {[%clk 0:00:11]} 43. Kf3 {[%clk 0:00:18]}  Nd6 {[%clk 0:00:11]} 44. g6 {[%clk 0:00:17]}  Kg7 {[%clk 0:00:11]} 45. Re7+ {[%clk 0:00:16]}  Kh6 {[%clk 0:00:09]} 46. g7 {[%clk 0:00:14]}  Kh7 {[%clk 0:00:09]} 47. e5 {[%clk 0:00:15]}  Nf5 {[%clk 0:00:09]} 48. Rf7 {[%clk 0:00:12]}  Nd4+ {[%clk 0:00:07]} 49. Kf2 {[%clk 0:00:12]}  Bg6 {[%clk 0:00:04]} 50. Rc7 {[%clk 0:00:10]}  Bf4 {[%clk 0:00:04]} 51. d6 {[%clk 0:00:06]}  Bxe5 {[%clk 0:00:04]} 52. Bc4 {[%clk 0:00:06]} 1-0


[Site "https://www.chess.com"]

[Event "Titled Tuesday Blitz September 13 Early 2022"]
[White "Harsha Bharathakoti"]
[Black "Atakhan, Abtin"]
[WhiteFideId "5078776"]
[BlackFideId "22502203"]
[WhiteElo "2523"]
[BlackElo "2087"]
[Result "1-0"]
[Round "05"]
[TimeControl "180+1"]
[Date "2022.09.13"]
[WhiteClock "0:00:13"]
[BlackClock "0:00:04"]

1. Nf3 {[%clk 0:03:00]}  Nf6 {[%clk 0:02:59]} 2. c4 {[%clk 0:03:00]}  g6 {[%clk 0:02:58]} 3. b3 {[%clk 0:03:00]}  Bg7 {[%clk 0:02:57]} 4. Bb2 {[%clk 0:03:01]}  O-O {[%clk 0:02:57]} 5. g3 {[%clk 0:02:59]}  d6 {[%clk 0:02:54]} 6. d4 {[%clk 0:02:59]}  c6 {[%clk 0:02:51]} 7. Bg2 {[%clk 0:02:58]}  Bf5 {[%clk 0:02:52]} 8. O-O {[%clk 0:02:58]}  Qd7 {[%clk 0:02:50]} 9. Nc3 {[%clk 0:02:53]}  Bh3 {[%clk 0:02:50]} 10. e4 {[%clk 0:02:53]}  Bxg2 {[%clk 0:02:45]} 11. Kxg2 {[%clk 0:02:54]}  Qc7 {[%clk 0:02:38]} 12. Re1 {[%clk 0:02:42]}  e5 {[%clk 0:02:37]} 13. Qd2 {[%clk 0:02:36]}  a5 {[%clk 0:02:32]} 14. Rad1 {[%clk 0:02:36]}  Nbd7 {[%clk 0:02:25]} 15. d5 {[%clk 0:02:23]}  c5 {[%clk 0:02:24]} 16. Nb5 {[%clk 0:02:22]}  Qb6 {[%clk 0:02:14]} 17. Nh4 {[%clk 0:02:18]}  a4 {[%clk 0:02:12]} 18. Bc3 {[%clk 0:02:12]}  axb3 {[%clk 0:02:12]} 19. axb3 {[%clk 0:02:13]}  Ra6 {[%clk 0:02:06]} 20. Qc2 {[%clk 0:02:06]}  Ne8 {[%clk 0:02:03]} 21. Ra1 {[%clk 0:01:56]}  Nc7 {[%clk 0:02:00]} 22. Nxc7 {[%clk 0:01:56]}  Qxc7 {[%clk 0:01:58]} 23. Rxa6 {[%clk 0:01:56]}  bxa6 {[%clk 0:01:59]} 24. Ra1 {[%clk 0:01:57]}  Qb6 {[%clk 0:01:56]} 25. Ba5 {[%clk 0:01:53]}  Qb7 {[%clk 0:01:55]} 26. Ra3 {[%clk 0:01:53]}  Bf6 {[%clk 0:01:45]} 27. Nf3 {[%clk 0:01:53]}  Bd8 {[%clk 0:01:46]} 28. Bc3 {[%clk 0:01:50]}  f5 {[%clk 0:01:40]} 29. exf5 {[%clk 0:01:48]}  Rxf5 {[%clk 0:01:30]} 30. Qa2 {[%clk 0:01:35]}  Nb8 {[%clk 0:01:12]} 31. Nd2 {[%clk 0:01:25]}  Qd7 {[%clk 0:01:04]} 32. Ne4 {[%clk 0:01:23]}  Rh5 {[%clk 0:01:04]} 33. f3 {[%clk 0:01:07]}  Qh3+ {[%clk 0:00:50]} 34. Kg1 {[%clk 0:01:08]}  Be7 {[%clk 0:00:48]} 35. Qg2 {[%clk 0:01:07]}  Qd7 {[%clk 0:00:37]} 36. g4 {[%clk 0:00:59]}  Rh4 {[%clk 0:00:36]} 37. Be1 {[%clk 0:00:55]}  Rh6 {[%clk 0:00:35]} 38. Bd2 {[%clk 0:00:55]}  Rh4 {[%clk 0:00:35]} 39. Qg3 {[%clk 0:00:33]}  Qd8 {[%clk 0:00:28]} 40. Kg2 {[%clk 0:00:30]}  Kg7 {[%clk 0:00:20]} 41. Bc3 {[%clk 0:00:29]}  h5 {[%clk 0:00:18]} 42. h3 {[%clk 0:00:29]}  hxg4 {[%clk 0:00:17]} 43. fxg4 {[%clk 0:00:30]}  Rh8 {[%clk 0:00:17]} 44. Ra2 {[%clk 0:00:20]}  Rf8 {[%clk 0:00:16]} 45. Rf2 {[%clk 0:00:20]}  Nd7 {[%clk 0:00:16]} 46. Rxf8 {[%clk 0:00:19]}  Qxf8 {[%clk 0:00:17]} 47. Qe3 {[%clk 0:00:19]}  Qb8 {[%clk 0:00:17]} 48. Ba5 {[%clk 0:00:19]}  Qf8 {[%clk 0:00:11]} 49. Bd2 {[%clk 0:00:19]}  Kg8 {[%clk 0:00:10]} 50. Qh6 {[%clk 0:00:17]}  Qf7 {[%clk 0:00:10]} 51. Ba5 {[%clk 0:00:15]}  Qe8 {[%clk 0:00:05]} 52. Bc7 {[%clk 0:00:14]}  Bf8 {[%clk 0:00:04]} 53. Qg5 {[%clk 0:00:14]}  Be7 {[%clk 0:00:04]} 54. Qe3 {[%clk 0:00:13]}  Qf8 {[%clk 0:00:04]} 55. Qf3 {[%clk 0:00:14]}  Qh6 {[%clk 0:00:02]} 56. Bxd6 {[%clk 0:00:12]}  Bxd6 {[%clk 0:00:02]} 57. Nxd6 {[%clk 0:00:13]}  Qd2+ {[%clk 0:00:03]} 58. Kg3 {[%clk 0:00:13]}  Nf8 {[%clk 0:00:03]} 59. Qf7+ {[%clk 0:00:13]}  Kh8 {[%clk 0:00:03]} 60. Qxf8+ {[%clk 0:00:14]}  Kh7 {[%clk 0:00:04]} 61. Qf7+ {[%clk 0:00:13]}  Kh6 {[%clk 0:00:04]} 62. Qf8+ {[%clk 0:00:10]}  Kh7 {[%clk 0:00:04]} 63. Qe7+ {[%clk 0:00:10]}  Kg8 {[%clk 0:00:03]} 64. Qe6+ {[%clk 0:00:09]}  Kh7 {[%clk 0:00:02]} 65. Qxe5 {[%clk 0:00:10]}  Qd3+ {[%clk 0:00:02]} 66. Kg2 {[%clk 0:00:10]}  Qd2+ {[%clk 0:00:03]} 67. Kf3 {[%clk 0:00:11]}  Qd1+ {[%clk 0:00:03]} 68. Qe2 {[%clk 0:00:11]}  Qh1+ {[%clk 0:00:03]} 69. Kg3 {[%clk 0:00:11]}  Qg1+ {[%clk 0:00:03]} 70. Kh4 {[%clk 0:00:11]}  Qd4 {[%clk 0:00:03]} 71. Qe7+ {[%clk 0:00:11]}  Kh6 {[%clk 0:00:03]} 72. Nf7+ {[%clk 0:00:12]}  Kg7 {[%clk 0:00:03]} 73. Ng5+ {[%clk 0:00:12]}  Kh6 {[%clk 0:00:04]} 74. Qh7# {[%clk 0:00:13]} 1-0


[Site "https://www.chess.com"]

[Event "Titled Tuesday Blitz September 13 Early 2022"]
[White "Jobava, Baadur"]
[Black "Kalogeris, Ioannis"]
[WhiteFideId "13601520"]
[BlackFideId "4239563"]
[WhiteElo "2582"]
[BlackElo "2291"]
[Result "1-0"]
[Round "05"]
[TimeControl "180+1"]
[Date "2022.09.13"]
[WhiteClock "0:01:18"]
[BlackClock "0:00:12"]

1. b3 {[%clk 0:03:00]}  e5 {[%clk 0:02:59]} 2. Bb2 {[%clk 0:03:01]}  Nc6 {[%clk 0:02:59]} 3. Nf3 {[%clk 0:02:58]}  Qe7 {[%clk 0:02:55]} 4. e3 {[%clk 0:02:56]}  a6 {[%clk 0:02:54]} 5. c4 {[%clk 0:02:54]}  Nf6 {[%clk 0:02:53]} 6. Be2 {[%clk 0:02:53]}  g6 {[%clk 0:02:51]} 7. O-O {[%clk 0:02:52]}  Bg7 {[%clk 0:02:51]} 8. Nc3 {[%clk 0:02:51]}  O-O {[%clk 0:02:49]} 9. Nd5 {[%clk 0:02:49]}  Qd6 {[%clk 0:02:32]} 10. Nxf6+ {[%clk 0:02:41]}  Qxf6 {[%clk 0:02:32]} 11. d4 {[%clk 0:02:31]}  d6 {[%clk 0:02:31]} 12. d5 {[%clk 0:02:29]}  Nb8 {[%clk 0:02:20]} 13. c5 {[%clk 0:02:27]}  Nd7 {[%clk 0:02:19]} 14. cxd6 {[%clk 0:02:27]}  Qxd6 {[%clk 0:02:09]} 15. e4 {[%clk 0:02:15]}  Rd8 {[%clk 0:01:54]} 16. Rc1 {[%clk 0:02:14]}  Nc5 {[%clk 0:01:39]} 17. Ba3 {[%clk 0:02:08]}  b6 {[%clk 0:01:38]} 18. Nd2 {[%clk 0:01:58]}  Bh6 {[%clk 0:01:31]} 19. Rc2 {[%clk 0:01:50]}  c6 {[%clk 0:01:26]} 20. Nc4 {[%clk 0:01:47]}  Qb8 {[%clk 0:01:10]} 21. Nxb6 {[%clk 0:01:47]}  Qxb6 {[%clk 0:01:06]} 22. Bxc5 {[%clk 0:01:47]}  Qb7 {[%clk 0:01:02]} 23. dxc6 {[%clk 0:01:44]}  Qc7 {[%clk 0:01:02]} 24. Qa1 {[%clk 0:01:41]}  Qxc6 {[%clk 0:00:55]} 25. Qxe5 {[%clk 0:01:38]}  Bg7 {[%clk 0:00:49]} 26. Qxg7+ {[%clk 0:01:35]}  Kxg7 {[%clk 0:00:47]} 27. Bf8+ {[%clk 0:01:36]}  Kxf8 {[%clk 0:00:46]} 28. Rxc6 {[%clk 0:01:37]}  Bb7 {[%clk 0:00:47]} 29. Rc7 {[%clk 0:01:36]}  Bxe4 {[%clk 0:00:45]} 30. f3 {[%clk 0:01:36]}  Bd5 {[%clk 0:00:42]} 31. Rd1 {[%clk 0:01:34]}  a5 {[%clk 0:00:39]} 32. Rc5 {[%clk 0:01:29]}  Be6 {[%clk 0:00:22]} 33. Rxd8+ {[%clk 0:01:29]}  Rxd8 {[%clk 0:00:22]} 34. Rxa5 {[%clk 0:01:30]}  Rd2 {[%clk 0:00:22]} 35. Kf2 {[%clk 0:01:31]}  Rb2 {[%clk 0:00:21]} 36. Ke3 {[%clk 0:01:31]}  h5 {[%clk 0:00:21]} 37. h4 {[%clk 0:01:31]}  Ke7 {[%clk 0:00:21]} 38. g3 {[%clk 0:01:31]}  Kd6 {[%clk 0:00:22]} 39. f4 {[%clk 0:01:25]}  Rb1 {[%clk 0:00:21]} 40. Bf3 {[%clk 0:01:25]}  Rg1 {[%clk 0:00:20]} 41. Kf2 {[%clk 0:01:25]}  Rb1 {[%clk 0:00:21]} 42. Be4 {[%clk 0:01:24]}  Rb2+ {[%clk 0:00:21]} 43. Ke3 {[%clk 0:01:25]}  f5 {[%clk 0:00:21]} 44. Bf3 {[%clk 0:01:23]}  Rb1 {[%clk 0:00:21]} 45. Kd4 {[%clk 0:01:24]}  Rc1 {[%clk 0:00:20]} 46. Ra6+ {[%clk 0:01:24]}  Ke7 {[%clk 0:00:20]} 47. Be2 {[%clk 0:01:18]}  Re1 {[%clk 0:00:20]} 48. Bc4 {[%clk 0:01:18]}  Rd1+ {[%clk 0:00:17]} 49. Kc5 {[%clk 0:01:16]}  Bxc4 {[%clk 0:00:16]} 50. Kxc4 {[%clk 0:01:17]}  Kf7 {[%clk 0:00:16]} 51. b4 {[%clk 0:01:17]}  Rg1 {[%clk 0:00:16]} 52. Ra3 {[%clk 0:01:17]}  Rc1+ {[%clk 0:00:16]} 53. Rc3 {[%clk 0:01:17]}  Ra1 {[%clk 0:00:16]} 54. a3 {[%clk 0:01:17]}  Ke6 {[%clk 0:00:16]} 55. Rd3 {[%clk 0:01:17]}  Rc1+ {[%clk 0:00:16]} 56. Kb5 {[%clk 0:01:17]}  Rc8 {[%clk 0:00:12]} 57. a4 {[%clk 0:01:17]}  Rb8+ {[%clk 0:00:13]} 58. Kc4 {[%clk 0:01:18]}  Rc8+ {[%clk 0:00:13]} 59. Kb3 {[%clk 0:01:18]}  Rb8 {[%clk 0:00:12]} 60. b5 {[%clk 0:01:18]} 1-0


[Site "https://www.chess.com"]

[Event "Titled Tuesday Blitz September 13 Early 2022"]
[White "Kevlishvili, Robby"]
[Black "Sarana, Alexey"]
[WhiteFideId "1040634"]
[BlackFideId "24133795"]
[WhiteElo "2585"]
[BlackElo "2689"]
[Result "1-0"]
[Round "05"]
[TimeControl "180+1"]
[Date "2022.09.13"]
[WhiteClock "0:00:08"]
[BlackClock "0:00:03"]

1. e4 {[%clk 0:03:00]}  c5 {[%clk 0:02:58]} 2. Nf3 {[%clk 0:03:01]}  d6 {[%clk 0:02:59]} 3. d4 {[%clk 0:03:01]}  cxd4 {[%clk 0:03:00]} 4. Nxd4 {[%clk 0:03:02]}  Nf6 {[%clk 0:03:00]} 5. Nc3 {[%clk 0:03:03]}  a6 {[%clk 0:03:01]} 6. h4 {[%clk 0:03:03]}  g6 {[%clk 0:02:57]} 7. h5 {[%clk 0:02:56]}  Nxh5 {[%clk 0:02:55]} 8. Rxh5 {[%clk 0:02:56]}  gxh5 {[%clk 0:02:55]} 9. Qxh5 {[%clk 0:02:56]}  Nc6 {[%clk 0:02:50]} 10. Be3 {[%clk 0:02:53]}  Qa5 {[%clk 0:02:40]} 11. Qh4 {[%clk 0:02:13]}  Bg7 {[%clk 0:02:38]} 12. O-O-O {[%clk 0:02:07]}  Bf6 {[%clk 0:02:33]} 13. Qh2 {[%clk 0:01:50]}  Nxd4 {[%clk 0:02:22]} 14. Bxd4 {[%clk 0:01:50]}  Bxd4 {[%clk 0:02:20]} 15. Rxd4 {[%clk 0:01:50]}  Qe5 {[%clk 0:02:21]} 16. Qxe5 {[%clk 0:01:45]}  dxe5 {[%clk 0:02:22]} 17. Rb4 {[%clk 0:01:45]}  b5 {[%clk 0:01:57]} 18. a4 {[%clk 0:01:41]}  bxa4 {[%clk 0:01:55]} 19. Nxa4 {[%clk 0:01:42]}  a5 {[%clk 0:01:48]} 20. Rb3 {[%clk 0:01:33]}  Be6 {[%clk 0:01:45]} 21. Rb6 {[%clk 0:01:33]}  Kd8 {[%clk 0:01:15]} 22. Nc5 {[%clk 0:01:12]}  Bc8 {[%clk 0:01:13]} 23. Rh6 {[%clk 0:01:10]}  e6 {[%clk 0:01:06]} 24. Nd3 {[%clk 0:00:57]}  Bd7 {[%clk 0:00:56]} 25. Nxe5 {[%clk 0:00:55]}  Be8 {[%clk 0:00:57]} 26. g4 {[%clk 0:00:50]}  a4 {[%clk 0:00:55]} 27. f4 {[%clk 0:00:48]}  a3 {[%clk 0:00:54]} 28. bxa3 {[%clk 0:00:48]}  Rxa3 {[%clk 0:00:54]} 29. Bd3 {[%clk 0:00:47]}  Ra1+ {[%clk 0:00:53]} 30. Kd2 {[%clk 0:00:47]}  Rg1 {[%clk 0:00:53]} 31. g5 {[%clk 0:00:47]}  Ke7 {[%clk 0:00:53]} 32. Ke3 {[%clk 0:00:45]}  Kf8 {[%clk 0:00:49]} 33. Kf2 {[%clk 0:00:42]}  Rc1 {[%clk 0:00:48]} 34. Ng4 {[%clk 0:00:39]}  Ba4 {[%clk 0:00:43]} 35. Ne3 {[%clk 0:00:24]}  Ra1 {[%clk 0:00:34]} 36. Kf3 {[%clk 0:00:20]}  Rg1 {[%clk 0:00:29]} 37. Ng4 {[%clk 0:00:19]}  Kg7 {[%clk 0:00:24]} 38. f5 {[%clk 0:00:19]}  exf5 {[%clk 0:00:09]} 39. exf5 {[%clk 0:00:20]}  Bd7 {[%clk 0:00:09]} 40. Ne5 {[%clk 0:00:17]}  Be8 {[%clk 0:00:04]} 41. f6+ {[%clk 0:00:16]}  Kf8 {[%clk 0:00:05]} 42. Kf4 {[%clk 0:00:17]}  Rg2 {[%clk 0:00:04]} 43. Rh1 {[%clk 0:00:15]}  Rg8 {[%clk 0:00:04]} 44. Ra1 {[%clk 0:00:10]}  R2xg5 {[%clk 0:00:02]} 45. Ra8 {[%clk 0:00:09]}  Rxe5 {[%clk 0:00:02]} 46. Kxe5 {[%clk 0:00:09]}  Rg5+ {[%clk 0:00:02]} 47. Kf4 {[%clk 0:00:09]}  Rc5 {[%clk 0:00:02]} 48. Bxh7 {[%clk 0:00:09]}  Rc6 {[%clk 0:00:01]} 49. Ke5 {[%clk 0:00:07]}  Rc5+ {[%clk 0:00:02]} 50. Kf4 {[%clk 0:00:07]}  Rc6 {[%clk 0:00:02]} 51. Kg5 {[%clk 0:00:07]}  Rc3 {[%clk 0:00:02]} 52. Bd3 {[%clk 0:00:07]}  Rc5+ {[%clk 0:00:02]} 53. Kf4 {[%clk 0:00:07]}  Rc6 {[%clk 0:00:03]} 54. Kg5 {[%clk 0:00:06]}  Rc5+ {[%clk 0:00:03]} 55. Bf5 {[%clk 0:00:06]}  Rc3 {[%clk 0:00:02]} 56. Bd7 {[%clk 0:00:06]}  Rc5+ {[%clk 0:00:01]} 57. Kf4 {[%clk 0:00:06]}  Kg8 {[%clk 0:00:02]} 58. Rxe8+ {[%clk 0:00:06]}  Kh7 {[%clk 0:00:02]} 59. Bf5+ {[%clk 0:00:07]}  Kh6 {[%clk 0:00:03]} 60. Rh8# {[%clk 0:00:08]} 1-0


[Site "https://www.chess.com"]

[Event "Titled Tuesday Blitz September 13 Early 2022"]
[White "Korchmar, Vasiliy"]
[Black "Shimanov, Aleksandr"]
[WhiteFideId "24131750"]
[BlackFideId "4198603"]
[WhiteElo "2370"]
[BlackElo "2605"]
[Result "0-1"]
[Round "05"]
[TimeControl "180+1"]
[Date "2022.09.13"]
[WhiteClock "0:00:09"]
[BlackClock "0:01:52"]

1. e4 {[%clk 0:03:00]}  d5 {[%clk 0:02:57]} 2. exd5 {[%clk 0:03:00]}  Qxd5 {[%clk 0:02:58]} 3. Nc3 {[%clk 0:02:59]}  Qe5+ {[%clk 0:02:59]} 4. Be2 {[%clk 0:02:51]}  Bg4 {[%clk 0:02:58]} 5. d4 {[%clk 0:02:48]}  Bxe2 {[%clk 0:02:58]} 6. Ngxe2 {[%clk 0:02:48]}  Qa5 {[%clk 0:02:58]} 7. O-O {[%clk 0:02:20]}  Nf6 {[%clk 0:02:58]} 8. b4 {[%clk 0:02:18]}  Qh5 {[%clk 0:02:57]} 9. Bf4 {[%clk 0:02:12]}  e6 {[%clk 0:02:56]} 10. d5 {[%clk 0:02:03]}  Bxb4 {[%clk 0:02:54]} 11. dxe6 {[%clk 0:02:00]}  O-O {[%clk 0:02:46]} 12. exf7+ {[%clk 0:01:39]}  Qxf7 {[%clk 0:02:45]} 13. Be5 {[%clk 0:01:18]}  Nbd7 {[%clk 0:02:32]} 14. Rb1 {[%clk 0:00:40]}  Nxe5 {[%clk 0:02:23]} 15. Rxb4 {[%clk 0:00:39]}  b6 {[%clk 0:02:23]} 16. Rd4 {[%clk 0:00:30]}  Rae8 {[%clk 0:02:21]} 17. Nf4 {[%clk 0:00:25]}  c5 {[%clk 0:02:12]} 18. Rd3 {[%clk 0:00:20]}  Nxd3 {[%clk 0:02:11]} 19. Nxd3 {[%clk 0:00:20]}  Ne4 {[%clk 0:02:08]} 20. Nb5 {[%clk 0:00:13]}  c4 {[%clk 0:02:04]} 21. Nb4 {[%clk 0:00:12]}  Nxf2 {[%clk 0:01:59]} 22. Qa1 {[%clk 0:00:09]}  Re2 {[%clk 0:01:52]} 0-1


[Site "https://www.chess.com"]